bitfinex/quotes_ETHUSD_20220106
["timestamp","ask_amount","ask_price","bid_price","bid_amount"]
[1641492335443,3.46397661,3432.0,3431.3,2.46567877]
[1641492335643,0.72859,3431.8,3431.4,0.00454739]
[1641492339303,5.72859,3431.8,3431.4,0.00454739]
[1641492339943,5.72859,3431.8,3431.4,0.03915459]
[1641492340442,5.72859,3431.8,3431.5,0.00397897]
[1641492340843,5.72859,3431.8,3431.5,0.01529275]
[1641492341243,5.72859,3431.8,3431.6,0.00341054]
[1641492341244,0.7287,3431.7,3431.6,0.00341054]
[1641492341446,1.5468,3431.7,3431.5,2.432e-05]
[1641492341643,2.5468,3431.7,3431.5,2.432e-05]
[1641492342045,0.72881,3430.9,3430.2,0.88189414]
[1641492342245,0.703,3430.9,3430.2,0.88189414]
[1641492342547,0.703,3430.9,3430.3,0.00738951]
[1641492342548,2.27758445,3430.4,3430.3,0.00738951]
[1641492342845,2.27758445,3430.4,3429.9,0.0096632]
[1641492343444,0.703,3430.9,3429.9,0.0096632]
[1641492343700,0.0346072,3431.4,3429.9,0.0096632]
[1641492343701,1.45771,3430.8,3429.9,0.0096632]
[1641492344099,1.45771,3430.8,3428.9,1.41260764]
[1641492344100,0.0346072,3431.4,3429.8,0.01023163]
[1641492344502,2.24283009,3431.0,3429.4,0.72889]
[1641492344700,0.72886,3430.5,3429.5,0.0119369]
[1641492344901,0.72886,3430.5,3429.7,1.05743209]
[1641492345100,0.72886,3430.5,3429.7,1.35743209]
[1641492345300,0.72886,3430.5,3429.8,0.01023163]
[1641492345702,1.71043127,3430.4,3429.8,0.01023163]
[1641492345901,0.72892,3430.3,3429.8,0.01023163]
[1641492346102,1.71043127,3430.4,3429.8,0.01023163]
[1641492346305,3.16831127,3430.4,3429.8,0.01023163]
[1641492346707,1.71043127,3430.4,3429.2,0.01364217]
[1641492346903,1.71043127,3430.4,3429.0,2.59134231]
[1641492346904,2.43940127,3430.4,3429.1,0.01421059]
[1641492347106,2.43940127,3430.4,3429.5,3.0762473]
[1641492347347,1.45798,3430.1,3429.5,3.0762473]
[1641492347542,1.45798,3430.1,3429.6,0.01136847]
[1641492347946,1.71043127,3430.4,3429.6,0.01136847]
[1641492348143,2.43941127,3430.4,3429.6,0.01136847]
[1641492348341,3.222,3430.8,3429.6,0.01136847]
[1641492348744,0.72885,3430.7,3429.6,0.01136847]
[1641492349544,2.88978425,3430.7,3430.0,1.77239613]
[1641492349945,0.72885,3430.7,3430.1,0.00852636]
[1641492350747,1.45776,3430.7,3430.1,0.00852636]
[1641492350946,0.72891,3430.7,3430.1,0.00852636]
[1641492352297,1.4578557,3430.7,3430.1,0.00852636]
[1641492353098,0.72896,3430.5,3430.1,0.00852636]
[1641492353299,0.72904,3430.4,3430.1,0.00852636]
[1641492353497,2.342131,3430.4,3430.0,0.00909478]
[1641492353695,2.342131,3430.4,3429.2,0.01364217]
[1641492353897,17.12,3430.3,3429.2,0.01364217]
[1641492354298,1.0,3430.2,3429.2,0.01364217]
[1641492354498,0.72915,3429.9,3429.2,0.01364217]
[1641492354697,0.7291481,3429.9,3429.2,0.01364217]
[1641492354957,2.4582,3430.2,3429.2,0.01364217]
[1641492355257,2.46917734,3430.3,3429.9,2.07664177]
[1641492355454,0.422,3430.6,3429.9,2.07664177]
[1641492355755,0.422,3430.6,3430.0,0.00909478]
[1641492355955,0.72902,3430.3,3430.0,0.00909478]
[1641492356555,0.72902,3430.3,3429.2,0.01364217]
[1641492357156,1.45809,3430.3,3429.2,0.01364217]
[1641492357454,2.84370776,3430.3,3429.6,1.62092676]
[1641492357658,2.84370776,3430.3,3429.6,1.92092676]
[1641492357659,0.72902,3430.3,3429.6,1.92092676]
[1641492357856,0.72902,3430.3,3429.7,0.01080005]
[1641492358155,2.4581,3430.3,3429.7,0.01080005]
[1641492358354,0.72915,3430.0,3429.7,0.01080005]
[1641492358609,0.72915,3430.0,3429.2,0.01364217]
[1641492359196,1.11059055,3429.9,3429.5,1.64962345]
[1641492359596,1.11059055,3429.9,3429.6,0.01136847]
[1641492359997,2.46919351,3429.9,3429.6,0.01136847]
[1641492360201,2.46919351,3429.9,3429.6,0.31136847]
[1641492360398,2.46919351,3429.9,3429.6,0.01136847]
[1641492360596,2.46919351,3429.9,3429.7,0.01080005]
[1641492360796,2.46919351,3429.9,3429.6,0.31136847]
[1641492360996,2.46919351,3429.9,3429.7,0.01080005]
[1641492362446,2.49770708,3429.8,3429.6,0.01136847]
[1641492362850,3.49770708,3429.8,3429.3,0.01307374]
[1641492363045,0.72918,3429.6,3429.3,0.01307374]
[1641492363447,3.49770708,3429.8,3429.5,2.07922785]
[1641492363448,3.22688448,3429.8,3429.5,2.07922785]
[1641492363646,2.46919351,3429.9,3429.5,2.07922785]
[1641492363846,2.46919351,3429.9,3429.6,0.01136847]
[1641492364046,2.46919351,3429.7,3429.6,0.01136847]
[1641492368901,2.45863451,3429.7,3429.6,0.01136847]
[1641492369402,7.45863451,3429.7,3429.6,0.01136847]
[1641492369842,1.45834,3429.6,3429.1,0.01421059]
[1641492370445,1.45834,3429.6,3429.1,1.17632917]
[1641492370843,5.0,3429.7,3429.4,1.93689335]
[1641492371279,5.0,3429.7,3429.5,0.0119369]
[1641492372448,5.0,3429.7,3429.6,0.01132019]
[1641492372847,5.0,3429.7,3429.6,0.02268866]
[1641492373596,7.32072637,3429.7,3429.6,0.02268866]
[1641492373799,5.0,3429.7,3429.6,0.02268866]
[1641492376601,7.34203641,3429.7,3429.6,0.02268866]
[1641492378353,25.22,3429.6,3427.9,3.96779414]
[1641492378550,0.72938,3428.6,3427.9,0.88189414]
[1641492378749,1.45876,3428.9,3428.0,0.00909478]
[1641492378750,0.9591,3428.7,3428.0,0.00909478]
[1641492379549,0.7294612,3428.3,3428.0,0.00909478]
[1641492379752,1.4589312,3428.3,3428.0,0.00909478]
[1641492379948,0.93127,3428.3,3427.6,0.01136847]
[1641492380148,0.2018,3428.3,3427.6,0.01136847]
[1641492380549,4.17180403,3428.3,3427.6,0.01136847]
[1641492380749,1.6426516,3427.9,3427.6,0.01136847]
[1641492380955,2.51351605,3427.8,3427.6,0.01136847]
[1641492381616,1.6426516,3427.9,3427.6,0.01136847]
[1641492381815,1.6426516,3427.9,3427.5,3.148e-05]
[1641492381816,8.35,3427.8,3427.5,3.148e-05]
[1641492382017,8.35,3427.8,3426.2,7.61260764]
[1641492382018,2.9,3427.6,3426.6,0.88189414]
[1641492382217,3.17984553,3427.5,3426.6,0.88189414]
[1641492382416,0.422,3427.4,3426.7,0.00511581]
[1641492382614,2.71223287,3427.3,3426.7,0.00511581]
[1641492383017,0.72972,3427.1,3426.7,0.00511581]
[1641492383216,2.44981945,3427.0,3426.7,0.00511581]
[1641492383417,2.44981945,3427.0,3426.6,0.00568424]
[1641492383618,2.44981945,3427.0,3426.3,0.00738951]
[1641492383816,2.44981945,3427.0,3426.3,1.23454606]
[1641492384018,0.72975,3426.9,3426.3,1.23454606]
[1641492384216,0.72975,3426.9,3426.4,0.00682108]
[1641492384416,1.72975,3426.9,3426.4,0.00682108]
[1641492384854,1.72975,3426.9,3426.7,1.99313842]
[1641492385251,1.72975,3426.9,3426.8,0.00454739]
[1641492385653,4.0779643,3426.9,3426.2,5.67537763]
[1641492385852,4.0779643,3426.9,3426.2,6.84885553]
[1641492386052,0.00227369,3426.8,3426.2,1.4734779]
[1641492386255,0.00227369,3426.8,3426.3,2.06529452]
[1641492386453,0.00170527,3426.7,3426.3,2.06529452]
[1641492386853,0.00113684,3426.6,3426.3,2.06529452]
[1641492387253,0.72974,3426.9,3426.3,2.06529452]
[1641492387453,3.32231071,3427.3,3426.5,2.11891147]
[1641492387655,0.00227369,3426.8,3426.5,2.11891147]
[1641492387854,1.00454738,3427.2,3426.5,2.11891147]
[1641492388056,0.00170527,3426.7,3426.5,2.11891147]
[1641492388355,0.72971,3427.0,3426.7,1.44096382]
[1641492389018,2.47056454,3426.9,3426.7,1.44096382]
[1641492389417,0.00227369,3426.8,3426.7,1.44096382]
[1641492392225,0.00227369,3426.8,3426.6,1.44096382]
[1641492392448,0.73203369,3426.8,3426.6,1.44096382]
[1641492392647,0.00170527,3426.7,3426.6,1.44096382]
[1641492392850,0.00170527,3426.7,3426.6,1.74096382]
[1641492393951,0.00170527,3426.7,3426.6,1.44096382]
[1641492394750,0.00170527,3426.7,3426.5,1.44096382]
[1641492395149,0.00113684,3426.6,3426.5,1.44096382]
[1641492397007,0.00113684,3426.6,3426.3,4.48420599]
[1641492397808,0.00113684,3426.6,3426.3,2.41891147]
[1641492398206,0.00113684,3426.6,3426.2,1.4734779]
[1641492398807,0.00113684,3426.6,3426.2,3.12472887]
[1641492399409,5.00113684,3426.6,3426.2,3.12472887]
[1641492403258,5.00113684,3426.6,3426.2,1.95125097]
[1641492403458,5.73094784,3426.6,3425.8,0.0753434]
[1641492403708,0.72982,3426.5,3425.9,0.3]
[1641492403905,0.72982,3426.5,3426.0,0.0022737]
[1641492404206,0.72982,3426.5,3425.9,0.00284212]
[1641492404507,0.72988,3426.4,3425.9,0.00284212]
[1641492404704,0.72989,3426.2,3425.9,0.00284212]
[1641492405607,0.72989,3426.2,3425.6,0.00454739]
[1641492406008,0.72989,3426.2,3425.8,1.86731758]
[1641492406206,1.4597884,3426.2,3425.8,1.86731758]
[1641492406408,1.4597884,3426.2,3425.9,0.00284212]
[1641492408151,2.1896884,3426.2,3425.9,0.00284212]
[1641492408357,2.22731964,3426.2,3425.9,0.00284212]
[1641492410857,2.22731964,3426.2,3425.6,0.00454739]
[1641492411112,0.7299,3425.9,3425.6,0.00454739]
[1641492411517,0.7299,3425.9,3425.5,0.00511582]
[1641492412418,0.7298271,3426.2,3425.8,2.04583116]
[1641492412616,3.22485473,3426.5,3425.8,2.04583116]
[1641492412816,3.22485473,3426.5,3425.9,0.00284212]
[1641492413217,3.1894521,3426.5,3425.9,0.00284212]
[1641492413620,0.7298215,3426.2,3426.1,1.36524645]
[1641492413923,3.1894521,3426.5,3426.1,1.36695172]
[1641492413924,2.4596321,3426.5,3426.1,1.36695172]
[1641492414117,5.00113684,3426.6,3426.1,1.36695172]
[1641492414320,5.00113684,3426.6,3426.2,0.00113685]
[1641492416155,2.47106627,3426.5,3426.2,0.00113685]
[1641492418612,2.47106627,3426.5,3426.4,3.66292164]
[1641492418815,2.47106627,3426.5,3426.4,0.01292164]
[1641492419013,2.47106627,3426.5,3426.4,1.01292164]
[1641492419412,2.47106627,3426.5,3426.4,0.01292164]
[1641492419812,2.47106627,3426.5,3426.4,2.4657866]
[1641492420019,2.47106627,3426.5,3426.4,2.7657866]
[1641492420214,1.11059055,3426.7,3426.4,3.7657866]
[1641492420415,3.03057804,3427.1,3426.4,3.7657866]
[1641492420416,1.99832266,3427.1,3426.6,0.0122971]
[1641492420618,0.74182266,3427.1,3427.0,0.0127338]
[1641492420816,3.7305343,3428.7,3427.0,1.1640538]
[1641492420817,1.48243279,3427.5,3427.0,1.1640538]
[1641492421017,1.48243279,3427.5,3427.1,1.92835815]
[1641492421217,1.48243279,3427.5,3427.1,2.35035815]
[1641492421418,1.48243279,3427.5,3427.1,1.92835815]
[1641492421617,2.22189539,3427.8,3427.1,1.92835815]
[1641492421817,0.73688951,3427.9,3427.1,1.92835815]
[1641492422020,0.00625266,3427.7,3427.1,1.92835815]
[1641492422217,0.00682108,3427.8,3427.1,1.92835815]
[1641492422451,0.00568424,3427.6,3427.1,1.92835815]
[1641492422657,0.00625266,3427.7,3427.1,1.92835815]
[1641492422851,0.7295471,3427.5,3427.1,1.92835815]
[1641492423053,0.7295471,3427.5,3427.2,0.00284212]
[1641492424254,1.4591371,3427.5,3427.2,0.00284212]
[1641492424457,0.7295471,3427.5,3427.2,0.00284212]
[1641492424655,0.7296636,3427.1,3426.6,0.00625266]
[1641492424855,0.7296636,3427.1,3426.2,0.00852635]
[1641492425058,1.4593,3427.6,3426.2,0.00852635]
[1641492425456,1.4593145,3427.4,3426.6,1.91247567]
[1641492425657,2.1889245,3427.4,3426.6,2.21247567]
[1641492425858,0.7296385,3427.2,3426.7,0.00568423]
[1641492427504,1.4593,3427.7,3426.7,0.00568423]
[1641492427505,0.00682108,3427.8,3426.7,2.42810962]
[1641492427704,0.00682108,3427.8,3426.8,0.01286808]
[1641492427908,0.00682108,3427.8,3426.8,0.01798389]
[1641492428105,0.00682108,3427.8,3426.9,0.00454739]
[1641492429005,0.00682108,3427.8,3427.5,2.01632832]
[1641492430056,0.00682108,3427.8,3427.5,2.31632832]
[1641492430255,0.00682108,3427.8,3427.7,1.0442863]
[1641492430657,0.00682108,3427.8,3427.7,1.3442863]
[1641492432159,0.00682108,3427.8,3427.7,3.75031681]
[1641492432360,0.00682108,3427.8,3427.7,5.13351681]
[1641492432560,0.00682108,3427.8,3427.7,6.13351681]
[1641492432759,0.00682108,3427.8,3427.7,3.7274863]
[1641492432962,0.00682108,3427.8,3427.7,6.19072485]
[1641492434816,0.00682108,3427.8,3427.7,3.7274863]
[1641492435016,0.00682108,3427.8,3427.7,2.7662863]
[1641492437657,0.00682108,3427.8,3427.7,3.70947873]
[1641492440660,0.00682108,3427.8,3427.7,3.83298342]
[1641492441305,0.00682108,3427.8,3427.7,2.83298342]
[1641492442802,0.00682108,3427.8,3427.7,4.28173631]
[1641492443205,0.00682108,3427.8,3427.7,6.70974291]
[1641492443409,0.00682108,3427.8,3427.7,7.70974291]
[1641492443804,0.00682108,3427.8,3427.7,6.26099002]
[1641492446256,0.00682108,3427.8,3427.7,3.83298342]
[1641492446457,0.00682108,3427.8,3427.7,6.29638201]
[1641492446656,0.00682108,3427.8,3427.7,8.46284943]
[1641492447057,0.00682108,3427.8,3427.7,5.99945084]
[1641492447558,0.00682108,3427.8,3427.7,3.83298342]
[1641492449707,0.00682108,3427.8,3427.7,5.2777411]
[1641492450506,0.00682108,3427.8,3427.7,3.83298342]
[1641492451106,0.00682108,3427.8,3427.7,5.27760712]
[1641492451706,0.00682108,3427.8,3427.7,3.83298342]
[1641492451908,0.00682108,3427.8,3427.7,1.78869712]
[1641492452109,0.00682108,3427.8,3427.7,1.06669712]
[1641492452955,0.72943,3428.3,3427.7,1.06669712]
[1641492453155,2.42684052,3427.8,3427.5,1.08461848]
[1641492454155,1.59820836,3428.0,3427.5,1.08461848]
[1641492454556,0.00113685,3427.9,3427.5,1.08461848]
[1641492455557,0.00113685,3427.9,3427.6,0.01132659]
[1641492455757,0.00113685,3427.9,3427.6,1.09594507]
[1641492455758,2.42797737,3427.9,3427.6,1.09594507]
[1641492456412,0.00113685,3427.9,3427.6,0.01132659]
[1641492463055,0.00113685,3427.9,3426.8,1.08461848]
[1641492463056,1.75065714,3426.9,3426.8,1.08461848]
[1641492463253,2.44945714,3426.9,3426.6,2.38935041]
[1641492463454,2.44945714,3426.9,3426.8,0.00511581]
[1641492463715,3.44945714,3426.9,3426.6,0.00625266]
[1641492464116,3.44945714,3426.9,3426.4,0.0073895]
[1641492464117,4.17927714,3426.9,3426.4,0.0073895]
[1641492464319,4.17927714,3426.9,3425.8,1.93659308]
[1641492464320,2.95381594,3426.5,3425.8,1.93659308]
[1641492464515,0.7298362,3426.3,3425.8,1.93659308]
[1641492464715,0.7298362,3426.3,3425.9,0.01023162]
[1641492465817,1.4596662,3426.3,3425.9,0.01023162]
[1641492469157,2.48041714,3426.9,3425.9,0.01023162]
[1641492469355,1.75065714,3426.9,3425.9,0.01023162]
[1641492470156,0.72977,3426.6,3426.0,1.19681637]
[1641492470556,0.7298038,3426.5,3426.1,0.00909477]
[1641492471204,2.47142125,3426.4,3426.1,0.00909477]
[1641492471803,3.20124125,3426.4,3425.9,0.01023162]
[1641492472805,2.47142125,3426.3,3425.9,0.01023162]
[1641492473707,2.47142125,3426.3,3425.9,1.47146417]
[1641492474106,2.47142125,3426.3,3426.0,0.0096632]
[1641492475158,3.20126125,3426.3,3426.0,0.0096632]
[1641492475354,0.72986,3426.2,3426.0,0.0096632]
[1641492475755,3.20128125,3426.2,3426.0,0.0096632]
[1641492476456,2.47142125,3426.1,3426.0,0.0096632]
[1641492477058,2.47142125,3426.1,3425.9,0.01023162]
[1641492477858,2.47142125,3426.2,3425.9,0.01023162]
[1641492478905,2.47142125,3426.3,3425.9,1.47146417]
[1641492479305,2.47142125,3426.3,3426.0,0.0096632]
[1641492479706,2.46208125,3426.3,3426.0,0.0096632]
[1641492480106,2.46208125,3426.3,3425.9,0.01023162]
[1641492480307,0.72983,3426.4,3425.9,0.01023162]
[1641492480505,0.7298458,3426.3,3425.9,0.01023162]
[1641492481105,5.0,3426.5,3425.9,0.01023162]
[1641492481505,5.0,3426.5,3425.9,1.47146417]
[1641492481906,0.729836,3426.3,3426.0,0.0096632]
[1641492482759,0.729836,3426.3,3425.9,0.01023162]
[1641492483757,0.729836,3426.3,3425.9,1.47146417]
[1641492484157,0.728326,3426.3,3426.0,0.0096632]
[1641492484557,0.720826,3426.3,3426.0,0.0096632]
[1641492484959,0.72982,3426.4,3426.0,0.0096632]
[1641492485163,2.46576357,3426.3,3426.0,0.0096632]
[1641492485360,0.72987,3426.2,3426.0,0.0096632]
[1641492485561,5.3476795,3426.1,3426.0,0.0096632]
[1641492485961,2.94576,3426.1,3425.9,0.01023162]
[1641492486207,5.25547387,3426.1,3425.9,0.01023162]
[1641492486407,2.94576,3426.1,3425.9,0.01023162]
[1641492486706,5.27475932,3426.1,3425.9,0.01023162]
[1641492486909,0.72987,3426.2,3425.9,0.01023162]
[1641492489509,5.0,3426.1,3425.9,0.01023162]
[1641492491756,5.72988,3426.1,3425.9,0.01023162]
[1641492491955,6.49642143,3426.1,3425.9,0.01023162]
[1641492497206,5.0,3426.1,3425.9,0.01023162]
[1641492500060,2.47132542,3426.0,3425.9,0.01023162]
[1641492501804,2.47132542,3426.0,3425.9,0.02156397]
[1641492505361,3.47132542,3426.0,3425.9,0.02156397]
[1641492505968,6.52132542,3426.0,3425.9,0.02156397]
[1641492506163,8.6037283,3426.0,3425.9,0.02156397]
[1641492506364,5.5537283,3426.0,3425.9,0.02156397]
[1641492506966,3.47132542,3426.0,3425.9,0.02156397]
[1641492509206,2.47132542,3426.0,3425.9,0.02156397]
[1641492509409,3.47132542,3426.0,3425.9,0.02156397]
[1641492510208,2.47132542,3426.0,3425.9,0.02156397]
[1641492510408,2.47132542,3426.0,3425.9,1.43556804]
[1641492511107,2.47132542,3426.0,3425.9,1.73556804]
[1641492512108,5.0,3426.1,3425.9,1.73556804]
[1641492512356,5.0,3426.1,3425.9,3.19680059]
[1641492512557,5.0,3426.1,3426.0,0.0096632]
[1641492512759,1.11210239,3426.8,3426.0,3.11330921]
[1641492512959,1.11210239,3426.8,3426.0,4.11330921]
[1641492513158,1.11210239,3426.8,3426.1,0.00909477]
[1641492513560,1.11210239,3426.8,3426.6,1.16746477]
[1641492513759,1.11210239,3426.8,3426.7,2.13091918]
[1641492513962,1.11210239,3426.8,3426.7,2.13660341]
[1641492514259,2.47073492,3426.8,3426.7,2.13660341]
[1641492515860,2.47073492,3426.8,3426.7,2.43660341]
[1641492516129,2.47073492,3426.8,3426.7,2.13660341]
[1641492517518,2.47073492,3426.8,3426.7,2.43660341]
[1641492518320,2.47073492,3426.8,3426.7,3.16610341]
[1641492518520,2.47073492,3426.8,3426.7,2.43660341]
[1641492518920,1.11210239,3427.5,3426.7,2.43660341]
[1641492519121,1.11210239,3427.6,3426.7,3.89783596]
[1641492519958,2.47068408,3426.8,3426.7,2.43660341]
[1641492521259,1.84171239,3427.5,3426.7,2.43660341]
[1641492521460,1.84171239,3427.5,3426.7,3.89783596]
[1641492522059,1.11210239,3427.5,3426.7,3.89783596]
[1641492522459,2.47065777,3426.8,3426.7,3.89783596]
[1641492523459,2.47065777,3426.8,3426.7,2.43660341]
[1641492524015,2.47065777,3426.8,3426.7,2.13660341]
[1641492525413,2.47065777,3426.8,3426.7,2.43660341]
[1641492525814,2.47065777,3426.8,3426.7,0.00568423]
[1641492526212,2.47065777,3426.8,3426.5,0.00682108]
[1641492527014,2.47065777,3426.8,3426.5,2.04206956]
[1641492527468,2.47065777,3426.8,3426.6,0.01758269]
[1641492527771,2.47065777,3426.8,3426.7,0.00568423]
[1641492529472,1.11210239,3427.2,3426.7,0.00568423]
[1641492529671,0.72966,3427.3,3426.7,0.00568423]
[1641492532909,0.72966,3427.3,3426.8,0.01132953]
[1641492534977,1.11210239,3427.6,3426.8,0.01132953]
[1641492535380,6.8562,3427.8,3426.8,0.01132953]
[1641492536677,6.8562,3427.8,3426.8,0.74081953]
[1641492537078,1.90223015,3427.2,3426.7,0.00568423]
[1641492537283,2.439458,3427.1,3426.7,0.00568423]
[1641492537478,1.01286638,3427.1,3426.6,0.00625266]
[1641492537678,0.01286638,3427.1,3426.6,0.00625266]
[1641492538077,2.47092376,3426.8,3426.6,0.00625266]
[1641492538278,3.20065376,3426.8,3426.6,0.00625266]
[1641492538479,2.47092376,3426.8,3426.7,1.70841513]
[1641492538913,2.47092376,3426.8,3426.7,1.71409936]
[1641492539309,1.75065714,3426.9,3426.7,1.71409936]
[1641492539509,1.75065714,3426.9,3426.8,4.65]
[1641492539712,1.11210239,3427.4,3426.8,0.3]
[1641492539914,1.11210239,3427.4,3426.9,0.01203455]
[1641492540110,1.11210239,3427.4,3426.9,0.01658194]
[1641492540314,0.12004801,3427.9,3427.1,2.59692667]
[1641492540513,0.12004801,3427.9,3427.1,1.13828667]
[1641492540713,0.12004801,3427.9,3427.2,0.30284212]
[1641492540912,0.12004801,3427.9,3427.2,0.00284212]
[1641492541416,0.12004801,3427.9,3427.5,0.72932]
[1641492541613,0.12004801,3427.9,3427.5,1.02932]
[1641492541812,0.12004801,3427.9,3427.5,0.3]
[1641492542012,0.12004801,3427.9,3427.3,2.68988105]
[1641492542463,0.2810536,3428.3,3427.6,0.72929]
[1641492542660,0.2810536,3428.3,3427.9,0.72922]
[1641492542861,0.00284212,3428.2,3427.6,2.68202143]
[1641492543161,0.00227369,3428.1,3427.7,1.95874765]
[1641492543559,0.00170527,3428.0,3427.8,1.45843]
[1641492543760,0.00170527,3428.0,3427.9,0.72924]
[1641492543962,0.2810536,3428.3,3427.9,1.02924]
[1641492544365,0.00284212,3428.2,3427.9,4.24558227]
[1641492544564,0.00284212,3428.2,3428.0,0.86354]
[1641492544764,0.2810536,3428.3,3428.1,3.87658618]
[1641492544970,0.2810536,3428.3,3428.2,2.63188685]
[1641492545164,0.2810536,3428.3,3428.2,4.05388685]
[1641492545363,1.11210239,3428.6,3428.2,4.05388685]
[1641492545364,0.11749599,3428.6,3428.2,4.05388685]
[1641492545563,0.11749599,3428.6,3428.3,2.51097579]
[1641492545766,0.00454739,3428.5,3428.4,2.73654808]
[1641492545965,0.00454739,3428.5,3428.4,3.73654808]
[1641492546215,0.00454739,3428.5,3428.4,1.3]
[1641492546616,0.00454739,3428.5,3428.4,4.50072116]
[1641492548719,0.44205918,3428.7,3428.4,4.50072116]
[1641492549118,0.44205918,3428.7,3428.4,5.95849116]
[1641492549519,0.44205918,3428.7,3428.5,0.422]
[1641492552163,0.44205918,3428.7,3428.6,2.1799314]
[1641492552566,0.44319603,3428.7,3428.6,5.57645991]
[1641492552763,0.60306476,3429.1,3428.9,0.7288]
[1641492552966,0.60306476,3429.1,3429.0,7.91646176]
[1641492553164,0.07581698,3429.3,3429.0,5.16646176]
[1641492553363,0.92507591,3429.9,3429.0,6.16646176]
[1641492553613,0.00284211,3429.2,3429.0,6.16646176]
[1641492553813,0.00284211,3429.2,3429.1,1.0]
[1641492554011,0.92507591,3429.9,3429.1,3.6167845]
[1641492554213,0.92507591,3429.9,3429.1,6.02946484]
[1641492554414,0.00397896,3429.4,3429.2,0.3]
[1641492554612,0.00397896,3429.4,3429.2,0.722]
[1641492554812,0.00341054,3429.3,3429.2,0.422]
[1641492555013,0.00341054,3429.3,3429.1,0.72876]
[1641492555213,0.00341054,3429.3,3429.0,1.79936382]
[1641492555412,0.00284211,3429.2,3429.0,1.79936382]
[1641492555816,0.92507591,3429.9,3429.0,1.79936382]
[1641492555817,0.00227369,3429.1,3429.0,1.79936382]
[1641492556215,0.00227369,3429.1,3429.0,2.52832382]
[1641492556615,0.00227369,3429.1,3429.0,4.55728382]
[1641492556818,0.00227369,3429.1,3429.0,3.55728382]
[1641492557016,0.00227369,3429.1,3429.0,4.55728382]
[1641492561124,0.00227369,3429.1,3429.0,2.1106859]
[1641492565066,0.00227369,3429.1,3429.0,4.48289788]
[1641492565270,0.00227369,3429.1,3429.0,5.94068788]
[1641492565467,0.00227369,3429.1,3429.0,6.94068788]
[1641492565868,0.00227369,3429.1,3429.0,4.5684759]
[1641492566270,0.00227369,3429.1,3429.0,6.94622495]
[1641492566476,0.76407033,3429.5,3429.0,7.36822495]
[1641492566669,0.76407033,3429.5,3429.2,0.72871]
[1641492566870,0.92507591,3429.9,3429.3,2.46769803]
[1641492567071,0.92507591,3429.9,3429.5,1.45727]
[1641492567272,0.00227369,3429.8,3429.7,1.36564245]
[1641492568071,0.00227369,3429.8,3429.7,4.77539473]
[1641492568272,0.00227369,3429.8,3429.7,4.72538442]
[1641492568474,0.00227369,3429.8,3429.7,2.36564245]
[1641492568712,0.00227369,3429.8,3429.7,1.36564245]
[1641492569014,0.00227369,3429.8,3429.7,2.36564245]
[1641492569415,0.00227369,3429.8,3429.7,1.36564245]
[1641492569613,0.00227369,3429.8,3429.7,1.0]
[1641492569817,0.00227369,3429.8,3429.7,3.75255732]
[1641492570416,0.00227369,3429.8,3429.7,2.39611235]
[1641492570618,0.00227369,3429.8,3429.7,1.39611235]
[1641492572021,0.00227369,3429.8,3429.7,29.23622945]
[1641492572221,0.8773496,3429.9,3429.7,33.34587195]
[1641492572466,0.8773496,3429.9,3429.7,31.59042945]
[1641492572665,1.08608149,3430.4,3429.8,1.0]
[1641492572867,1.08608149,3430.4,3430.1,1.45707]
[1641492573065,0.00284212,3430.3,3430.1,3.17907]
[1641492573268,0.00284212,3430.3,3430.2,1.7985879]
[1641492573465,1.08608149,3430.4,3430.2,1.7985879]
[1641492573466,1.08608149,3430.4,3430.2,2.2205879]
[1641492573667,1.08608149,3430.4,3430.3,1.19551159]
[1641492573870,1.08608149,3430.4,3430.3,1.61751159]
[1641492574172,1.08949203,3430.4,3430.3,2.91751159]
[1641492574566,1.08949203,3430.4,3430.3,5.23903062]
[1641492575370,1.24708707,3430.8,3430.5,0.72847]
[1641492575569,1.24708707,3430.8,3430.6,2.8531987]
[1641492575769,0.00170527,3430.7,3430.6,0.722]
[1641492575969,0.00170527,3430.7,3430.6,3.31751032]
[1641492576415,0.00170527,3430.7,3430.6,0.722]
[1641492579884,0.45906486,3430.8,3430.6,0.722]
[1641492581685,0.45906486,3430.8,3430.6,1.3048341]
[1641492584520,0.45906486,3430.8,3430.7,0.01131646]
[1641492588569,0.45906486,3430.8,3430.7,1.17684946]
[1641492590073,0.45906486,3430.8,3430.7,3.82902283]
[1641492590471,1.56909823,3431.6,3430.7,4.25102283]
[1641492590671,1.56909823,3431.6,3430.8,0.5827036]
[1641492590870,0.0022737,3431.1,3431.0,0.72838]
[1641492591121,0.0022737,3431.1,3431.0,1.45038]
[1641492591324,0.0022737,3431.1,3431.0,3.79119842]
[1641492591522,0.0022737,3431.1,3431.0,2.64564587]
[1641492592020,0.0022737,3431.1,3431.0,3.22835327]
[1641492594222,0.0022737,3431.1,3431.0,2.64564587]
[1641492594623,0.0022737,3431.1,3431.0,1.45038]
[1641492594873,0.0022737,3431.1,3430.7,0.01131646]
[1641492595176,0.00170528,3431.0,3430.3,1.53306077]
[1641492595376,0.00170528,3431.0,3430.3,0.07581077]
[1641492595571,0.00113685,3430.9,3430.4,0.00170527]
[1641492595970,0.00113685,3430.9,3430.4,2.00438296]
[1641492596372,0.00113685,3430.9,3430.5,0.72980684]
[1641492597170,0.00113685,3430.9,3430.6,0.3]
[1641492597573,0.00113685,3430.9,3430.5,0.30113684]
[1641492597776,0.00113685,3430.9,3430.6,0.72865]
[1641492597975,0.00113685,3430.9,3430.8,1.21963177]
[1641492599231,0.00113685,3430.9,3430.7,0.3]
[1641492599532,0.00113685,3430.9,3430.5,1.74052567]
[1641492600231,0.00113685,3430.9,3430.5,1.44052567]
[1641492600434,0.00113685,3430.9,3430.5,0.00113684]
[1641492600832,5.00113685,3430.9,3430.5,0.00113684]
[1641492601433,5.00113685,3430.9,3430.6,1.06166723]
[1641492601634,5.00113685,3430.9,3430.7,0.72861]
[1641492601834,5.00113685,3430.9,3430.7,1.02861]
[1641492602238,2.46762712,3430.8,3430.7,1.02861]
[1641492603670,5.00113685,3430.9,3430.7,1.02861]
[1641492603872,5.00113685,3430.9,3430.7,2.46799883]
[1641492604874,5.00113685,3430.9,3430.7,3.05071483]
[1641492605682,5.00113685,3430.9,3430.8,5.972]
[1641492605877,1.40809265,3431.2,3430.8,0.422]
[1641492606127,1.40809265,3431.2,3431.0,0.72827]
[1641492606324,1.56909823,3431.6,3431.0,0.72827]
[1641492606531,1.56909823,3431.6,3431.1,2.60681]
[1641492606724,0.00227369,3431.5,3431.2,1.35253242]
[1641492607124,0.00170527,3431.4,3431.2,1.65253242]
[1641492607324,0.00170527,3431.4,3431.3,2.91308]
[1641492607523,1.56909823,3431.6,3431.3,2.91308]
[1641492607925,0.00227369,3431.5,3431.3,2.91308]
[1641492608327,0.00170527,3431.4,3431.3,2.91308]
[1641492614824,0.00170527,3431.4,3431.3,3.91308]